Cogmind - Beta 13 @@@ ROGUE MODE // 2024.04.30 @ 22:02:32 Player: CrimsonOccultist Result: Destroyed by S-27 Virus with Autogun Performance ------------- Evolutions (5) 2500 Regions Visited (17) 3400 Robots Destroyed (210) 1050 Value Destroyed (5467) 5467 Prototype IDs (46) 920 Alien Tech Used (0) 0 Bonus (2095) 2095 TOTAL SCORE: 15432 Bonus ------- High Alert Combat Kills 636 Follower Combat Kills 459 Entered Garrisons 200 Used RIF Installer 500 Aligned with FarCom 300 Cogmind --------- Core Integrity 0/1000 Matter 277/300 Energy 86/100 System Corruption 26% Temperature Cool (59) Movement Core (50) Location -4/Proximity Caves Parts ------- > --- POWER (1) -------- (None) > --- PROPULSION (4) --- (None) > --- UTILITY (10) ----- Experimental Signal Interpreter Advanced Terrain Scan Processor Hacking Suite System Shield > --- WEAPON (2) ------- (None) > --- INVENTORY (5) ---- Improved Remote Datajack Peak State ------------ > --- POWER ------------ Neutrino Core > --- PROPULSION ------- Xenon Bombardment Thruster Xenon Bombardment Thruster Cooled VTOL Module Cooled Nuclear Pulse Thruster > --- UTILITY ---------- Experimental Signal Interpreter Advanced Terrain Scanner Advanced Terrain Scan Processor Hacking Suite Hacking Suite Hacking Suite Hacking Suite System Shield System Shield System Shield > --- WEAPON ----------- Heavy Shock Bomb Launcher Spear > --- INVENTORY -------- Gravmag Array Advanced Force Field Remote Datajack [Rating: 76] Favorites ----------- Power Reinforced Fission Core Engine Ion Engine Power Core Reinforced Fission Core Propulsion Armored Treads Treads Armored Treads Hover Unit Gravmag Array Flight Unit Xenon Bombardment Thruster Utility Hacking Suite Device Advanced Terrain Scanner Storage Large Storage Unit Processor Advanced Targeting Computer Hackware Hacking Suite Protection Light Armor Plating Weapon High-powered Shotgun Energy Gun Particle Gun Ballistic Gun High-powered Shotgun Launcher Missile Launcher Special Weapon Remote Datajack Slashing Weapon Katana Piercing Weapon Spear Special Melee Weapon Improved Datajack Build | -11 -10 -10 -10 -9 -8 -8 -8 -7 -6 -6 -5 -5 -5 -5 -5 -5 -4 ------- Run | Yrd Mat Min Exi Min Mat Gar Mat Fac Fac Ext Fac Was Fac Upp Upp War Pro Slots Evolved 10 | . . . . . 4 . . 2 2 . 2 . . . . . . Power . | . . . . . . . . . . . . . . . . . . Propulsion 2 | . . . . . 1 . . . . . 1 . . . . . . Utility 8 | . . . . . 3 . . 2 2 . 1 . . . . . . Weapon . | . . . . . . . . . . . . . . . . . . Parts Attached 184 | 7 15 4 1 . 22 15 9 47 8 15 16 2 6 4 8 1 4 Power 21 | 1 3 1 . . . 1 1 4 . 2 2 . 1 1 2 1 1 Engine 12 | 1 3 . . . . . 1 2 . 2 1 . 1 . 1 . . Core 9 | . . 1 . . . 1 . 2 . . 1 . . 1 1 1 1 Reactor . | . . . . . . . . . . . . . . . . . . Propulsion 46 | 2 3 1 . . 6 2 2 17 1 2 5 . 1 1 3 . . Treads 16 | 2 3 1 . . 6 2 2 . . . . . . . . . . Leg . | . . . . . . . . . . . . . . . . . . Wheel . | . . . . . . . . . . . . . . . . . . Hover 1 | . . . . . . . . . . . . . . 1 . . . Flight 29 | . . . . . . . . 17 1 2 5 . 1 . 3 . . Utility 54 | 1 2 . 1 . 11 5 2 13 3 2 7 2 . 2 2 . 1 Device 23 | . . . . . 3 3 1 5 2 1 2 1 . 2 2 . 1 Storage 2 | 1 . . 1 . . . . . . . . . . . . . . Processor 9 | . . . . . 3 . . 2 1 1 1 1 . . . . . Hackware 11 | . . . . . . 1 . 6 . . 4 . . . . . . Protection 9 | . 2 . . . 5 1 1 . . . . . . . . . . Artifact . | . . . . . . . . . . . . . . . . . . Weapon 63 | 3 7 2 . . 5 7 4 13 4 9 2 . 4 . 1 . 2 Energy Gun 2 | 1 1 . . . . . . . . . . . . . . . . Energy Cannon . | . . . . . . . . . . . . . . . . . . Ballistic Gun 21 | 2 6 1 . . 4 4 4 . . . . . . . . . . Ballistic Cannon . | . . . . . . . . . . . . . . . . . . Launcher 19 | . . 1 . . 1 2 . 6 2 6 . . 1 . . . . Special Weapon 4 | . . . . . . . . . . . 1 . 2 . . . 1 Impact Weapon . | . . . . . . . . . . . . . . . . . . Slashing Weapon 5 | . . . . . . . . 4 1 . . . . . . . . Piercing Weapon 8 | . . . . . . . . . 1 3 1 . 1 . 1 . 1 Special Melee Weapon 4 | . . . . . . 1 . 3 . . . . . . . . . Unidentified Prototypes 6 | . . . . . 1 . 1 2 . . 1 1 . . . . . Parts Lost 50 | . 1 . . . 3 1 4 11 3 6 . . 5 3 4 1 8 Power 10 | . 1 . . . . . 1 3 . 2 . . . . 1 1 1 Propulsion 14 | . . . . . . . 1 3 3 1 . . 2 . 1 . 3 Utility 20 | . . . . . 2 1 2 3 . 2 . . 3 2 2 . 3 Weapon 6 | . . . . . 1 . . 2 . 1 . . . 1 . . 1 Highest Loss Streak 7 | . 1 . . . 1 1 1 6 2 3 . . 3 3 4 1 7 To Critical Strikes 2 | . . . . . 1 . 1 . . . . . . . . . . Average Slot Usage (%) 89 | . 87 100 100 100 94 96 95 85 77 77 82 94 85 64 52 64 39 Engine 3 | . 13 11 . . . . 4 1 6 5 . . . . 1 3 . Core 5 | . . 2 14 14 9 9 4 4 . . 3 5 4 5 3 1 1 Treads 17 | . 27 28 28 28 27 27 26 . . . . . . . . . . Flight 6 | . . . . . . . . 22 19 17 19 23 19 4 10 17 5 Device 5 | . . . . . 5 7 12 5 4 6 5 5 4 2 3 11 3 Storage 7 | . 14 14 14 14 9 9 9 . . . . . . . . . . Processor 9 | . . . . . 14 18 14 1 10 13 17 11 11 11 11 11 11 Hackware 10 | . . . . . . . . 36 33 29 28 41 35 28 14 11 11 Protection 5 | . 3 14 14 14 11 7 5 . . . . . . . . . . Ballistic Gun 13 | . 26 27 28 28 17 17 17 . . . . . . . . . . Naked Turns . | . . . . . . . . . . . . . . . . . . Heaviest Build 65 | 12 19 35 50 50 65 62 39 39 20 12 17 17 20 31 17 17 18 Greatest Support 68 | 40 40 40 40 40 60 60 68 68 19 17 23 23 23 20 27 27 30 Greatest Overweight (x) 6 | . 6 . 1 1 1 1 . 1 1 2 . . 1 1 4 . 1 Average Overweight (x) . | . . . . 1 . . . . . . . . . . . . . Largest Inventory Capacity 15 | 8 8 8 15 15 15 15 15 15 5 5 5 5 5 5 5 5 5 Average Capacity 10 | 6 8 8 9 15 15 15 15 5 5 5 5 5 5 5 5 5 5 Most Carried 15 | 4 8 8 8 13 15 15 15 15 5 5 5 5 5 5 5 2 1 Average Carried 9 | 2 7 7 8 9 14 14 13 4 4 2 4 4 4 2 2 1 . Final Capacity 15 | 8 8 8 15 15 15 15 15 5 5 5 5 5 5 5 5 5 5 Final Carried 15 | 4 8 8 8 13 15 14 14 5 5 5 4 4 5 5 2 1 1 Class Distribution -------------------- 61% | Mutant 14% | Hacker-Scout 9% | Hacker-Mutant 6% | Hacker-Sprinter 3% | Wizard-Scout 3% | Scavenger-Mutant Dominant Class ---------------- Mutant | -10/Materials Mutant | -10/Mines Mutant | -10/Exiles Mutant | -9/Mines Mutant | -8/Materials Mutant | -8/Garrison Mutant | -8/Materials Hacker-Sprinter | -7/Factory Hacker-Scout | -6/Factory Hacker-Scout | -6/Extension Wizard-Scout | -5/Factory Wizard-Scout | -5/Waste Wizard-Scout | -5/Factory Hacker-Mutant | -5/Upper Caves Hacker-Mutant | -5/Upper Caves Derelict-Sprinter | -5/Warlord Hacker-Mutant | -4/Proximity Caves Resources | -11 -10 -10 -10 -9 -8 -8 -8 -7 -6 -6 -5 -5 -5 -5 -5 -5 -4 ----------- Run | Yrd Mat Min Exi Min Mat Gar Mat Fac Fac Ext Fac Was Fac Upp Upp War Pro Matter Collected 4661 | 148 479 150 . 77 860 578 734 347 317 505 193 27 39 80 92 . 35 Remotely . | . . . . . . . . . . . . . . . . . . Salvage Created 7113 | . 778 63 . 200 1761 581 1187 441 318 831 248 . 340 21 215 . 129 Parts 405 | . 49 2 . 6 99 46 60 24 18 52 14 . 18 3 7 . 7 Haulers Intercepted 16 | . 2 . . . 5 . 2 3 . 1 2 . 1 . . . . Recyclers Shooed 7 | . 3 . . . 4 . . . . . . . . . . . . Parts Field Recycled . | . . . . . . . . . . . . . . . . . . Retrieved Matter . | . . . . . . . . . . . . . . . . . . Parts Self-Destructed 10 | . . . . . . . . . . . . . . 3 . . 7 Prevented . | . . . . . . . . . . . . . . . . . . Kills | -11 -10 -10 -10 -9 -8 -8 -8 -7 -6 -6 -5 -5 -5 -5 -5 -5 -4 ------- Run | Yrd Mat Min Exi Min Mat Gar Mat Fac Fac Ext Fac Was Fac Upp Upp War Pro Combat Hostiles Destroyed 136 | . 9 3 . 4 28 31 31 7 8 10 . . . 1 . . 4 Melee 11 | . . . . . . . . 6 . . . . . 1 . . 4 Guns 99 | . 9 3 . 4 25 27 31 . . . . . . . . . . AOE 26 | . . . . . 3 4 . 1 8 10 . . . . . . . Classes Destroyed 17 | . 5 1 . 1 5 1 1 . 1 1 . . . . 1 . . Worker 8 | . . . . . . . 2 1 . 4 . . 1 . . . . Builder 7 | . . . . . 1 . . 1 . 4 . . 1 . . . . Tunneler 4 | . . . . 1 . . . . 1 1 1 . . . . . . Hauler 16 | . 2 . . . 5 . 2 3 . 1 2 . 1 . . . . Recycler 15 | . 3 . . 1 4 . 1 . 1 4 . . 1 . . . . Operator 7 | . 2 . . . 3 . 1 . . . 1 . . . . . . Watcher 17 | . 3 . . . 5 . 1 2 1 2 1 . 2 . . . . Swarmer 53 | . . 3 . 2 9 19 7 5 . 4 . . . 1 . . 3 Cutter 3 | . . . . . . . . . 3 . . . . . . . . Grunt 53 | . 9 . . 2 6 11 17 1 3 4 . . . . . . . Brawler 2 | . . . . . 1 . 1 . . . . . . . . . . Protector 1 | . . . . . . . . . . 1 . . . . . . . Sentry 16 | . . . . . 8 . 6 . 2 . . . . . . . . Specialist 2 | . . . . . 2 . . . . . . . . . . . . Hunter 2 | . . . . . 2 . . . . . . . . . . . . Programmer 4 | . . . . . . 1 . 1 . 1 . . . . . . 1 Decomposer 2 | . . . . . . . . . . . . . . . 2 . . Samaritan 5 | . . . . . . . . . . . . . . . 5 . . Best Kill Streak 8 | . 4 3 . 2 7 6 7 3 7 8 1 . 2 1 . . 3 Combat Bots Only 7 | . 4 3 . 2 6 6 7 3 7 5 . . . 1 . . 3 Max Kills in Single Turn 4 | . 1 1 . 1 3 4 2 1 3 4 1 . 1 1 1 . 1 Gunslinging 1 | . . . . . 1 1 1 . . . . . . . . . . Exploded 4 | . . . . . 2 4 . 1 3 2 . . . . . . . Melee 1 | . . . . . . . . 1 . . . . . 1 . . 1 Uniques/NPCs Destroyed . | . . . . . . . . . . . . . . . . . . Combat | -11 -10 -10 -10 -9 -8 -8 -8 -7 -6 -6 -5 -5 -5 -5 -5 -5 -4 -------- Run | Yrd Mat Min Exi Min Mat Gar Mat Fac Fac Ext Fac Was Fac Upp Upp War Pro Hostile Shots Fired 788 | . 32 9 . 17 115 140 77 143 58 45 4 . 23 19 31 . 75 Missed 269 | . 7 1 . 8 26 33 19 59 29 27 2 . 13 9 15 . 21 Damage Taken 7529 | . 320 72 . 101 1299 1245 832 1166 282 364 38 . 298 215 312 56 929 Core 2201 | . 35 10 . 8 173 189 91 461 66 161 . . 149 65 59 . 734 Absorbed by Shields . | . . . . . . . . . . . . . . . . . . Regen/Repaired (Parts) 158 | . 139 . . . . . . . . . 19 . . . . . . Core Remaining (%) 60 | 100 . . . 78 . . 17 34 . 73 . . . . . . . Volleys Fired 354 | . 52 8 . 12 108 50 80 10 14 19 . . 1 . . . . Largest 2 | . 2 2 . 2 2 2 2 1 1 1 . . 1 . . . . Hottest 85 | . 85 46 . 46 61 61 50 39 43 43 . . 5 . . . . Shots Fired 659 | . 104 13 . 24 215 97 162 10 14 19 . . 1 . . . . Gun 605 | . 104 10 . 24 213 92 162 . . . . . . . . . . Cannon . | . . . . . . . . . . . . . . . . . . Launcher 53 | . . 3 . . 2 5 . 10 14 19 . . . . . . . Special 1 | . . . . . . . . . . . . . 1 . . . . Kinetic 597 | . 96 10 . 24 213 92 162 . . . . . . . . . . Thermal 8 | . 8 . . . . . . . . . . . . . . . . Explosive 50 | . . 3 . . 2 5 . 7 14 19 . . . . . . . Electromagnetic 3 | . . . . . . . . 3 . . . . . . . . . Robot Hit Streak 15 | . 12 10 . 10 13 13 15 7 5 7 . . 2 . . . . Robot Miss Streak 8 | . 3 1 . 2 7 8 8 2 2 1 . . . . . . . Penetration Max 1 | . . . . . 1 . . . . . . . . . . . . Secondary Targets 15 | . . . . 1 3 5 6 . . . . . . . . . . Max Gunslinging Chain 1 | . . . . 1 1 1 1 . . . . . . . . . . Shots Hit Robots 576 | . 72 8 . 17 161 75 130 44 11 14 12 . 11 1 9 . 11 Core Hits 339 | . 33 5 . 9 73 48 75 14 22 42 4 . 4 1 4 . 5 Critical Kills 2 | . . . . . . . 2 . . . . . . . . . . Critical Parts Destroyed 3 | . . . . . . 1 2 . . . . . . . . . . Critical Strikes 13 | . . . . . . 1 4 4 . 1 . . 1 . . . 2 Destroy 5 | . . . . . . 1 4 . . . . . . . . . . Sever 4 | . . . . . . . . 4 . . . . . . . . . Impale 4 | . . . . . . . . . . 1 . . 1 . . . 2 Melee Attacks 196 | . . . . . . 2 . 95 4 8 27 . 21 1 9 . 29 Impact . | . . . . . . . . . . . . . . . . . . Slashing 90 | . . . . . . . . 89 1 . . . . . . . . Piercing 98 | . . . . . . . . . 3 8 27 . 21 1 9 . 29 Sneak Attacks 34 | . . . . . . . . 12 2 3 4 . 4 . 9 . . Combat Hostiles 1 | . . . . . . . . 1 . . . . . . . . . Follow-up Attacks . | . . . . . . . . . . . . . . . . . . Damage Inflicted 17360 | 2 931 221 . 286 2989 2042 2877 1720 1190 3021 558 . 518 31 650 . 324 Guns 8429 | . 924 109 . 267 2730 1551 2848 . . . . . . . . . . Cannons . | . . . . . . . . . . . . . . . . . . Explosions 4980 | . . 112 . . 230 491 . 373 999 2775 . . . . . . . Melee 3823 | . . . . . . . . 1347 191 246 558 . 476 31 650 . 324 Ramming 128 | 2 7 . . 19 29 . 29 . . . . . 42 . . . . Kinetic 8345 | . 840 109 . 267 2730 1551 2848 . . . . . . . . . . Thermal 84 | . 84 . . . . . . . . . . . . . . . . Explosive 4948 | . . 112 . . 230 491 . 341 999 2775 . . . . . . . Electromagnetic 32 | . . . . . . . . 32 . . . . . . . . . Impact . | . . . . . . . . . . . . . . . . . . Slashing 1409 | . . . . . . . . 1347 62 . . . . . . . . Piercing 2414 | . . . . . . . . . 129 246 558 . 476 31 650 . 324 Highest Corruption 26 | . . . . . 1 2 2 1 . . . . 18 18 18 19 26 Average Corruption 4 | . . . . . 1 1 2 1 . . . . 17 18 18 18 22 Corruption Purged . | . . . . . . . . . . . . . . . . . . Corruption Blocked 2 | . . . . . . . . . 2 . . . . . . . . Effects 113 | . . . . . 2 11 31 12 . . . . 15 13 7 2 20 Message Errors 32 | . . . . . 1 4 10 4 . . . . 4 2 2 . 5 Matter Fused 22 | . . . . . . 1 5 3 . . . . 2 4 2 2 3 Heat Flow Errors 13 | . . . . . . 3 3 . . . . . 1 3 1 . 2 Energy Discharges 10 | . . . . . 1 1 3 1 . . . . 3 1 . . . Parts Rejected 3 | . . . . . . . . . . . . . 1 . . . 2 Parts Fused 1 | . . . . . . . 1 . . . . . . . . . . Data Loss (minor) 13 | . . . . . . 2 3 2 . . . . 1 3 . . 2 Data Loss (major) 6 | . . . . . . . 3 1 . . . . 1 . 1 . . Misfires 2 | . . . . . . . 2 . . . . . . . . . . Alerts 2 | . . . . . . . 1 1 . . . . . . . . . Misdirections 9 | . . . . . . . . . . . . . 2 . 1 . 6 Overload Shots . | . . . . . . . . . . . . . . . . . . Overflow Damage 967 | . . 10 . . . 59 . 256 40 110 102 . 85 . 298 . 7 Projectiles . | . . . . . . . . . . . . . . . . . . Explosions 226 | . . 10 . . . 59 . 65 13 79 . . . . . . . Melee 741 | . . . . . . . . 191 27 31 102 . 85 . 298 . 7 Knockbacks . | . . . . . . . . . . . . . . . . . . Impact . | . . . . . . . . . . . . . . . . . . Kinetic . | . . . . . . . . . . . . . . . . . . Secondary . | . . . . . . . . . . . . . . . . . . Self-Inflicted Damage 78 | . . . . . . . . 36 . . . . 42 . . . . Shots 2 | . . . . . . . . 2 . . . . . . . . . Rammed 16 | 1 2 . . 3 3 1 6 . . . . . . . . . . Targets Rammed 18 | 1 3 . . 3 3 1 7 . . . . . . . . . . Kicked . | . . . . . . . . . . . . . . . . . . Crushed 2 | . 1 . . . . . 1 . . . . . . . . . . Highest Temperature 241 | . 184 . . 66 193 227 241 4 3 2 . . 127 205 131 . 219 Average Temperature 49 | . 30 . . 31 49 71 36 2 3 1 . . 63 91 63 . 129 Received Heat Transfer 1957 | . 177 . . 36 387 432 432 69 21 96 9 . 36 54 141 . 67 Siege Activations . | . . . . . . . . . . . . . . . . . . Robots Corrupted . | . . . . . . . . . . . . . . . . . . Combat Hostiles . | . . . . . . . . . . . . . . . . . . Parts Fried . | . . . . . . . . . . . . . . . . . . Impact Corruptions . | . . . . . . . . . . . . . . . . . . Robots Melted . | . . . . . . . . . . . . . . . . . . Combat Hostiles . | . . . . . . . . . . . . . . . . . . Parts Melted . | . . . . . . . . . . . . . . . . . . Heat Transferred 222 | . 222 . . . . . . . . . . . . . . . . Parts Sabotaged . | . . . . . . . . . . . . . . . . . . Parts Stolen . | . . . . . . . . . . . . . . . . . . Parts Stripped . | . . . . . . . . . . . . . . . . . . Power Chain Reactions . | . . . . . . . . . . . . . . . . . . Alert | -11 -10 -10 -10 -9 -8 -8 -8 -7 -6 -6 -5 -5 -5 -5 -5 -5 -4 ------- Run | Yrd Mat Min Exi Min Mat Gar Mat Fac Fac Ext Fac Was Fac Upp Upp War Pro Peak Influence 1081 | . 129 70 . 69 415 1081 857 468 600 540 157 16 127 . . . . Initial 526 | . . . . . 17 56 526 313 228 289 100 16 11 . . . . Average 243 | . 42 26 . 31 167 655 586 188 266 276 72 16 24 . . . . Maximum Alert Level 3 | . . . . . 2 3 3 2 2 2 . . . . . . . Low Security (%) 58 | 100 100 100 . 100 74 14 . 61 18 17 100 100 100 . . . . Level 1 20 | . . . . . 20 5 19 36 72 71 . . . . . . . Level 2 11 | . . . . . 4 30 48 2 8 10 . . . . . . . Level 3 8 | . . . . . . 49 31 . . . . . . . . . . Level 4 . | . . . . . . . . . . . . . . . . . . Level 5 . | . . . . . . . . . . . . . . . . . . High Security . | . . . . . . . . . . . . . . . . . . Max Security . | . . . . . . . . . . . . . . . . . . Squads Dispatched 34 | . . . . . 4 . 11 11 2 2 1 . 2 . . . 1 Investigation 6 | . . . . . 2 . . 3 . . 1 . . . . . . Extermination 4 | . . . . . . . . 3 . . . . 1 . . . . Reinforcement 13 | . . . . . 2 . 3 5 1 1 . . 1 . . . . Assault 6 | . . . . . . . 3 . 1 1 . . . . . . 1 Garrison 5 | . . . . . . . 5 . . . . . . . . . . Intercept . | . . . . . . . . . . . . . . . . . . Searches Triggered . | . . . . . . . . . . . . . . . . . . Construction Impeded 4 | . . . . . . . 2 1 . 1 . . . . . . . Haulers Reinforced 2 | . . . . . . . . 2 . . . . . . . . . Active Scanning Responses . | . . . . . . . . . . . . . . . . . . Cargo Convoy Interrupts . | . . . . . . . . . . . . . . . . . . Stealth | -11 -10 -10 -10 -9 -8 -8 -8 -7 -6 -6 -5 -5 -5 -5 -5 -5 -4 --------- Run | Yrd Mat Min Exi Min Mat Gar Mat Fac Fac Ext Fac Was Fac Upp Upp War Pro Distress Signals 17 | . 1 . . . 1 . 4 4 2 3 1 . 1 . . . . Communications Jammed . | . . . . . . . . . . . . . . . . . . Distress Signals . | . . . . . . . . . . . . . . . . . . Times Spotted 322 | . 18 3 . 4 39 40 50 47 19 30 7 . 15 9 12 . 29 Peak Tracking Total 13 | . 5 2 . 2 4 7 8 13 7 6 3 . 8 7 8 . 9 Tactical Retreats 43 | . . . . . . 5 1 14 5 6 . . 1 2 3 . 6 Traps | -11 -10 -10 -10 -9 -8 -8 -8 -7 -6 -6 -5 -5 -5 -5 -5 -5 -4 ------- Run | Yrd Mat Min Exi Min Mat Gar Mat Fac Fac Ext Fac Was Fac Upp Upp War Pro Traps Triggered 16 | . 2 . . . 2 2 . 3 . 4 1 . 1 . . 1 . Indirectly . | . . . . . . . . . . . . . . . . . . Trap Hack Attempts . | . . . . . . . . . . . . . . . . . . Triggered . | . . . . . . . . . . . . . . . . . . Disarmed . | . . . . . . . . . . . . . . . . . . Reprogrammed . | . . . . . . . . . . . . . . . . . . Reused . | . . . . . . . . . . . . . . . . . . Traps Extracted . | . . . . . . . . . . . . . . . . . . Installed . | . . . . . . . . . . . . . . . . . . Triggered . | . . . . . . . . . . . . . . . . . . Machines | -11 -10 -10 -10 -9 -8 -8 -8 -7 -6 -6 -5 -5 -5 -5 -5 -5 -4 ---------- Run | Yrd Mat Min Exi Min Mat Gar Mat Fac Fac Ext Fac Was Fac Upp Upp War Pro Machines Disabled 11 | . . . . . 4 1 . 2 . 3 1 . . . . . . Max in Single Turn 2 | . . . . . 2 . . 1 . 2 1 . . . . . . Garrison Access 1 | . . . . . . . 1 . . . . . . . . . . Machines Repaired . | . . . . . . . . . . . . . . . . . . Machines Dismantled . | . . . . . . . . . . . . . . . . . . Machines Sabotaged . | . . . . . . . . . . . . . . . . . . Overloaded Fab Kills . | . . . . . . . . . . . . . . . . . . Hacking | -11 -10 -10 -10 -9 -8 -8 -8 -7 -6 -6 -5 -5 -5 -5 -5 -5 -4 --------- Run | Yrd Mat Min Exi Min Mat Gar Mat Fac Fac Ext Fac Was Fac Upp Upp War Pro Machines Accessed 83 | . 11 . 1 2 14 3 6 17 2 13 7 . 6 1 . . . Terminals 62 | . 8 . . 1 11 3 4 10 2 13 5 . 5 . . . . Fabricators 3 | . . . . . . . . 2 . . 1 . . . . . . Repair Stations 3 | . 1 . . . . . . 1 . . 1 . . . . . . Recycling Units 5 | . 2 . . . 2 . . 1 . . . . . . . . . Scanalyzers 3 | . . . . . . . 1 2 . . . . . . . . . Garrison Access 4 | . . . . . 1 . 1 1 . . . . 1 . . . . Total Hacks 278 | . 43 . 1 7 37 5 15 78 7 31 24 . 29 1 . . . Successful 166 | . 26 . 1 5 22 1 7 52 6 15 15 . 15 1 . . . Failed 111 | . 17 . . 2 14 4 8 26 1 16 9 . 14 . . . . Catastrophic 24 | . 5 . . . 3 . 3 5 . 1 2 . 5 . . . . Database Lockouts 1 | . . . . . 1 . . . . . . . . . . . . Manual 178 | . 20 . 1 5 35 . 11 52 7 11 11 . 25 . . . . Terminals 229 | . 33 . . 6 32 5 11 61 7 31 15 . 28 . . . . Fabricators 8 | . . . . . . . . 5 . . 3 . . . . . . Repair Stations 15 | . 7 . . . . . . 2 . . 6 . . . . . . Recycling Units 8 | . 3 . . . 3 . . 2 . . . . . . . . . Scanalyzers 7 | . . . . . . . 2 5 . . . . . . . . . Garrison Access 8 | . . . . . 2 . 2 3 . . . . 1 . . . . Terminal Hacks 84 | . 14 . 1 2 8 1 1 29 3 14 3 . 7 1 . . . Record 9 | . . . . . 1 . . 6 . . . . 2 . . . . Robot Analysis 6 | . 4 . . . 1 . . . . 1 . . . . . . . Prototype ID Bank 13 | . 7 . . . 3 . . 3 . . . . . . . . . Open Door 12 | . . . . 1 . 1 . . . 9 . . . 1 . . . Open DSF 1 | . . . . . . . . . . . 1 . . . . . . Level Access Points 1 | . . . . . . . . 1 . . . . . . . . . Branch Access Points 1 | . . . . . . . . 1 . . . . . . . . . Machine Index 2 | . . . . . . . . 1 1 . . . . . . . . Terminal Index 1 | . . . . . . . . . . . . . 1 . . . . Scanalyzer Index 1 | . . . . . . . . . . . . . 1 . . . . Alert Level 1 | . . . . . 1 . . . . . . . . . . . . Unreport Threat 9 | . 1 . . . 2 . 1 1 1 2 1 . . . . . . Locate Traps 4 | . . . . . . . . 2 . . . . 2 . . . . Dispatch Records 7 | . . . . . . . . 5 1 1 . . . . . . . Transport Status 1 | . 1 . . . . . . . . . . . . . . . . Recall Investigation 2 | . . . . . . . . 1 . . 1 . . . . . . Recall Extermination 2 | . . . . . . . . 1 . . . . 1 . . . . Recall Reinforcements 5 | . . . . . . . . 4 . 1 . . . . . . . Hauler Manifests 1 | . . . . . . . . 1 . . . . . . . . . Zone Layout 4 | . 1 . . 1 . . . 2 . . . . . . . . . Derelict Proto ID Bank 1 | . . . 1 . . . . . . . . . . . . . . Fabricator Hacks 6 | . . . . . . . . 4 . . 2 . . . . . . Load Schematic 3 | . . . . . . . . 2 . . 1 . . . . . . Build 3 | . . . . . . . . 2 . . 1 . . . . . . Repair Station Hacks 12 | . 5 . . . . . . 1 . . 6 . . . . . . Scan Component 7 | . 3 . . . . . . 1 . . 3 . . . . . . Repair 5 | . 2 . . . . . . . . . 3 . . . . . . Recycling Unit Hacks 4 | . 3 . . . . . . 1 . . . . . . . . . Report Inventory 1 | . . . . . . . . 1 . . . . . . . . . Retrieve Components 3 | . 3 . . . . . . . . . . . . . . . . Scanalyzer 7 | . . . . . . . 2 5 . . . . . . . . . Insert Component 3 | . . . . . . . 1 2 . . . . . . . . . Analyze 4 | . . . . . . . 1 3 . . . . . . . . . Garrison Access Hacks 4 | . . . . . 1 . 2 1 . . . . . . . . . Unlock Access 1 | . . . . . 1 . . . . . . . . . . . . Seal Access 1 | . . . . . . . 1 . . . . . . . . . . Coupler Status 2 | . . . . . . . 1 1 . . . . . . . . . Unauthorized Hacks 49 | . 4 . . 3 13 . 2 11 3 1 4 . 8 . . . . Terminals 42 | . 4 . . 3 10 . 2 8 3 1 4 . 7 . . . . Track 7 | . . . . 1 3 . . 1 . . . . 2 . . . . Assimilate 3 | . . . . . . . . 1 1 . . . 1 . . . . Botnet 26 | . 3 . . 1 6 . 2 5 2 1 3 . 3 . . . . Operators 6 | . 1 . . 1 1 . . 1 . . 1 . 1 . . . . Fabricators . | . . . . . . . . . . . . . . . . . . Repair Stations . | . . . . . . . . . . . . . . . . . . Recycling Units 4 | . . . . . 3 . . 1 . . . . . . . . . Monitor 1 | . . . . . 1 . . . . . . . . . . . . Reject 3 | . . . . . 2 . . 1 . . . . . . . . . Scanalyzers . | . . . . . . . . . . . . . . . . . . Garrison Access 3 | . . . . . . . . 2 . . . . 1 . . . . Decoy 1 | . . . . . . . . 1 . . . . . . . . . Reprogram 2 | . . . . . . . . 1 . . . . 1 . . . . Data Cores Recovered 4 | . 2 . . . 2 . . . . . . . . . . . . Used . | . . . . . . . . . . . . . . . . . . Hacking Detections 60 | . 9 . . 1 12 2 5 14 2 6 5 . 4 . . . . Full Trace Events 6 | . . . . . 2 1 . 2 . . 1 . . . . . . Feedback Events . | . . . . . . . . . . . . . . . . . . Feedback Blocked . | . . . . . . . . . . . . . . . . . . Robot Schematics Acquired . | . . . . . . . . . . . . . . . . . . Robots Built . | . . . . . . . . . . . . . . . . . . Authchips . | . . . . . . . . . . . . . . . . . . Time . | . . . . . . . . . . . . . . . . . . Total Robot Build Rating . | . . . . . . . . . . . . . . . . . . Part Schematics Acquired 3 | . . . . . . . 1 2 . . . . . . . . . Parts Built 3 | . . . . . . . . 2 . . 1 . . . . . . Authchips . | . . . . . . . . . . . . . . . . . . Time 145 | . . . . . . . . 109 . . 36 . . . . . . Total Part Build Rating 9 | . . . . . . . . 6 . . 3 . . . . . . Parts Repaired 5 | . 2 . . . . . . . . . 3 . . . . . . Time 131 | . 52 . . . . . . . . . 79 . . . . . . Parts Recycled . | . . . . . . . . . . . . . . . . . . Recycled Matter . | . . . . . . . . . . . . . . . . . . Retrieved Matter . | . . . . . . . . . . . . . . . . . . Retrieved Components 11 | . 11 . . . . . . . . . . . . . . . . Parts Scanalyzed 3 | . . . . . . . 1 2 . . . . . . . . . Part Schematics Acquired 3 | . . . . . . . 1 2 . . . . . . . . . Parts Damaged . | . . . . . . . . . . . . . . . . . . Bothacking | -11 -10 -10 -10 -9 -8 -8 -8 -7 -6 -6 -5 -5 -5 -5 -5 -5 -4 ------------ Run | Yrd Mat Min Exi Min Mat Gar Mat Fac Fac Ext Fac Was Fac Upp Upp War Pro Used RIF Installer 1 | . . . . . . 1 . . . . . . . . . . . Robots Hacked 5 | . . . . . . 1 . 3 . . . . 1 . . . . Non-combat 4 | . . . . . . . . 3 . . . . 1 . . . . Combat 1 | . . . . . . 1 . . . . . . . . . . . Robot Hacks Applied 5 | . . . . . . 1 . 3 . . . . 1 . . . . parse_system 2 | . . . . . . . . 1 . . . . 1 . . . . drop_inventory 1 | . . . . . . . . 1 . . . . . . . . . ignore_parts 1 | . . . . . . . . 1 . . . . . . . . . wipe_record 1 | . . . . . . 1 . . . . . . . . . . . Relay Couplers Released 3 | . . . . . . 3 . . . . . . . . . . . Programmers 3 | . . . . . . 3 . . . . . . . . . . . Attached 2 | . . . . . . 1 . 1 . . . . . . . . . Fabnet Peak Effective % . | . . . . . . . . . . . . . . . . . . Robots Rewired . | . . . . . . . . . . . . . . . . . . Allies Hacked 1 | . . . . . . . . 1 . . . . . . . . . Hacks Repelled . | . . . . . . . . . . . . . . . . . . Allies | -11 -10 -10 -10 -9 -8 -8 -8 -7 -6 -6 -5 -5 -5 -5 -5 -5 -4 -------- Run | Yrd Mat Min Exi Min Mat Gar Mat Fac Fac Ext Fac Was Fac Upp Upp War Pro Total Allies 17 | . . 1 . . . 2 . 1 1 12 . . . . . . . Largest Group 9 | . . 1 . . . 2 . 1 1 9 . . . . . . . Highest-Rated Group 236 | . . 31 . . . 53 . 10 10 236 . . . . . . . Highest-Rated Ally 39 | . . 31 . . . 31 . 10 10 39 . . . . . . . Total Orders . | . . . . . . . . . . . . . . . . . . Ally Attacks 96 | . . 10 . . . 17 . . . 69 . . . . . . . Total Damage 1767 | . . 144 . . . 310 . . . 1313 . . . . . . . Kills 18 | . . 1 . . . 4 . . . 13 . . . . . . . Allies Corrupted . | . . . . . . . . . . . . . . . . . . Allies Melted . | . . . . . . . . . . . . . . . . . . Intel | -11 -10 -10 -10 -9 -8 -8 -8 -7 -6 -6 -5 -5 -5 -5 -5 -5 -4 ------- Run | Yrd Mat Min Exi Min Mat Gar Mat Fac Fac Ext Fac Was Fac Upp Upp War Pro Robot Analysis Total 6 | . 4 . . . 1 . . . . 1 . . . . . . . Derelict Logs Recovered 4 | . . 1 . 2 . . . . . . . . . . . . 1 Drone Launches . | . . . . . . . . . . . . . . . . . . Drone Recoveries . | . . . . . . . . . . . . . . . . . . Exploration | -11 -10 -10 -10 -9 -8 -8 -8 -7 -6 -6 -5 -5 -5 -5 -5 -5 -4 ------------- Run | Yrd Mat Min Exi Min Mat Gar Mat Fac Fac Ext Fac Was Fac Upp Upp War Pro Turns Passed 18174 | 82 1776 1018 478 989 3770 1637 2117 2080 369 1680 676 23 600 344 188 27 320 Spaces Moved 14175 | 44 884 611 283 390 1607 788 710 3576 732 1410 969 69 595 450 388 78 591 Core 276 | 3 1 . . . . . . 2 . . . . . . 1 . 269 Treads 5335 | 41 883 611 283 390 1607 788 710 22 . . . . . . . . . Legs . | . . . . . . . . . . . . . . . . . . Wheels . | . . . . . . . . . . . . . . . . . . Hover 566 | . . . . . . . . . . . . . . 450 116 . . Flight 7998 | . . . . . . . . 3552 732 1410 969 69 595 . 271 78 322 Fastest Speed 27 | 50 160 160 160 240 160 170 166 29 30 27 27 28 28 60 32 32 28 Average Speed 91 | 152 160 160 169 240 203 176 167 32 33 39 28 28 31 73 40 32 41 Slowest Speed 350 | 160 350 160 240 240 250 250 170 166 106 165 32 28 108 110 250 32 117 Overloaded Moves 91 | . . . . . . . . . 34 53 . . . . . . 4 Propulsion Burnouts . | . . . . . . . . . . . . . . . . . . Robots Hopped 20 | . . . . . . . . 6 5 8 . . 1 . . . . Cave-ins Triggered . | . . . . . . . . . . . . . . . . . . Exploration Rate (%) 57 | 5 99 98 67 71 95 69 41 78 17 79 20 64 17 58 50 15 84 Regions Visited 17 Branch Regions 8 Pre-discovered Areas 3 | . . . . 2 . . . . . . . . . . . . 1 Known Exits Taken 5 | . . . . 1 1 . 1 1 . 1 . . . . . . . Unknown Exits Taken 9 | 1 1 1 1 . . . . . 1 . . . 1 1 1 1 . Scrap Searched 6 | . . 1 . . . . . . . . . . . 2 2 . 1 Spaces Dug 54 | . . . . . . . . 31 1 3 3 . 9 . . . 7 Terrain Destroyed 506 | . . 23 . . 15 18 . 73 160 198 3 . 9 . . . 7 Melee 54 | . . . . . . . . 31 1 3 3 . 9 . . . 7 Projectile 4 | . . . . . 4 . . . . . . . . . . . . AOE 448 | . . 23 . . 11 18 . 42 159 195 . . . . . . . Terrain Rammed 4 | . . . . . . . . . . . . . 4 . . . . Walls Destroyed . | . . . . . . . . . . . . . . . . . . Machines Disabled . | . . . . . . . . . . . . . . . . . . Actions | -11 -10 -10 -10 -9 -8 -8 -8 -7 -6 -6 -5 -5 -5 -5 -5 -5 -4 --------- Run | Yrd Mat Min Exi Min Mat Gar Mat Fac Fac Ext Fac Was Fac Upp Upp War Pro Total 18520 | 55 1162 640 284 416 1904 940 1507 4348 827 2484 1325 72 975 462 405 79 635 Wait 3376 | . 175 12 . 7 115 80 693 578 68 988 304 . 343 2 . 1 10 Move 14122 | 43 883 610 282 389 1606 786 709 3564 722 1395 969 68 592 449 387 77 591 Hop 16 | . . . . . . . . 5 4 6 . . 1 . . . . Pick Up 71 | 3 17 2 . 5 23 2 3 7 2 3 1 . 1 2 . . . Fast Attach 77 | 7 10 . . . 2 4 4 18 4 4 11 1 4 1 4 . 3 Attach 49 | . 2 . . . 8 1 4 10 3 6 3 1 2 3 4 1 1 Detach 33 | 1 1 . . . 1 . 2 7 2 3 5 2 4 3 1 . 1 Swap 58 | . 3 4 1 . 12 10 1 19 1 5 2 . . . . . . Drop 95 | . 16 4 1 . 26 4 4 28 3 3 3 . 2 1 . . . Fire 354 | . 52 8 . 12 108 50 80 10 14 19 . . 1 . . . . Melee 196 | . . . . . . 2 . 95 4 8 27 . 21 1 9 . 29 Ram 4 | . . . . . . . . . . . . . 4 . . . . Kick . | . . . . . . . . . . . . . . . . . . Crush 18 | 1 3 . . 3 3 1 7 . . . . . . . . . . Escape Stasis 51 | . . . . . . . . 7 . 44 . . . . . . . Rewire . | . . . . . . . . . . . . . . . . . . Trap . | . . . . . . . . . . . . . . . . . . Miscellaneous . | . . . . . . . . . . . . . . . . . . Route ------- -11/Scrapyard -10/Materials (discovered 4 exits: [*Mat x3] / [*Min]) -10/Mines (discovered 3 exits: [*Mat x2] / *Exi) -10/Exiles -9/Mines (discovered 2 exits: *Mat x2) -8/Materials (discovered 4 exits: *Fac x3 / Gar) -8/Garrison (discovered 3 exits: *Mat x3) -8/Materials -7/Factory (discovered 6 exits: *Fac x4 / *Low x2) -6/Factory -6/Extension (discovered 2 exits: *Fac / *Cet) -5/Factory -5/Waste -5/Factory (discovered 2 exits: [Fac] / *Upp) -5/Upper Caves -5/Upper Caves -5/Warlord -4/Proximity Caves History --------- Turn | Location | Event 15 | -11/Scrapyard | Discovered new exit (range 14) 83 | -11/Scrapyard | Entered Materials 316 | -10/Materials | Build established: Mutant 766 | -10/Materials | Discovered new exit (range 14) 916 | -10/Materials | Discovered new exit (range 8) 1017 | -10/Materials | Discovered new exit (range 16) 1577 | -10/Materials | Discovered new exit (range 14) 1713 | -10/Materials | Repaired Lgt. Treads 1741 | -10/Materials | Repaired Ion Engine 1859 | -10/Materials | Entered Mines 1861 | -10/Mines | Joined a pair of Derelicts in attacking an 0b10 outpost 2173 | -10/Mines | Learned location of 1 exit from Materials 2270 | -10/Mines | Discovered new exit (range 10) 2313 | -10/Mines | Discovered new exit (range 7) 2557 | -10/Mines | Received a Mining Laser from a helpful Derelict 2647 | -10/Mines | Assembled infested the area 2685 | -10/Mines | Met 8R-AWN 2871 | -10/Mines | Discovered new exit (range 5) 2877 | -10/Mines | Entered Exiles 2921 | -10/Exiles | Welcomed by 8R-AWN 2945 | -10/Exiles | Met EX-HEX 2999 | -10/Exiles | Met EX-BIN 3020 | -10/Exiles | Aligned with FarCom system 3021 | -10/Exiles | Given EX-Vault access code 3063 | -10/Exiles | Opened EX-Vault 3100 | -10/Exiles | Warned to stay clear of 0b10 Research branches 3153 | -10/Exiles | Met EX-DEC 3329 | -10/Exiles | Discovered new exit (range 14) 3355 | -10/Exiles | Entered Mines 3356 | -9/Mines | Learned location of Storage (-9) 3411 | -9/Mines | Met a Derelict bent on vengeance 3641 | -9/Mines | Discovered new exit (range 8) 3730 | -9/Mines | Learned location of Zion (-7) 3756 | -9/Mines | Identified exit to Materials 4065 | -9/Mines | Met a Derelict who couldn't figure out how to use a Trap Extractor 4312 | -9/Mines | Found a damaged Exp. Sensor Array with a note attached 4317 | -9/Mines | Found Prototype Device 4344 | -9/Mines | Entered Materials 4344 | -8/Materials | Evolved 4 slots: Propulsion x1, Utility x3 4345 | -8/Materials | Identified exit to Factory 4345 | -8/Materials | Identified Exp. Sensor Array 4958 | -8/Materials | Build established: Scavenger-Mutant 5278 | -8/Materials | Discovered exit to Factory (range 15) 5292 | -8/Materials | Build established: Mutant 5659 | -8/Materials | Central database locked down 5902 | -8/Materials | Identified exit to Garrison 6603 | -8/Materials | Discovered exit to Factory (range 15) 8114 | -8/Materials | Entered Garrison 8194 | -8/Garrison | Installed Relay Interface Framework 8276 | -8/Garrison | Triggered checkpoint 8285 | -8/Garrison | Triggered checkpoint 8592 | -8/Garrison | Triggered checkpoint 8602 | -8/Garrison | Rescued a captive Derelict 8603 | -8/Garrison | Rescued a captive Derelict 8614 | -8/Garrison | Core integrity fell below 50% 8856 | -8/Garrison | Triggered checkpoint 8973 | -8/Garrison | Build established: Scavenger-Mutant 8976 | -8/Garrison | Triggered checkpoint 9081 | -8/Garrison | Discovered new exit (range 11) 9156 | -8/Garrison | Triggered checkpoint 9291 | -8/Garrison | Discovered new exit (range 13) 9294 | -8/Garrison | Build established: Mutant 9462 | -8/Garrison | Discovered new exit (range 8) 9751 | -8/Garrison | Entered Materials 10061 | -8/Materials | Garrison activated, responded to threat 10386 | -8/Materials | Garrison activated, responded to threat 10791 | -8/Materials | Garrison activated, responded to threat 10951 | -8/Materials | First assault squad dispatched 11125 | -8/Materials | Destroyed 7 combat bots 11676 | -8/Materials | Core integrity fell below 20% 11682 | -8/Materials | Discovered exit to Factory (range 9) 11868 | -8/Materials | Entered Factory 11868 | -7/Factory | Evolved 2 slots: Utility x2 12123 | -7/Factory | Discovered new exit (range 12) 12212 | -7/Factory | Build established: Hacker-Sprinter 12449 | -7/Factory | Discovered new exit (range 16) 12541 | -7/Factory | Build established: Hacker-Scout 12701 | -7/Factory | Fabricated Hacking Suite? 12854 | -7/Factory | Build established: Hacker-Mutant 13142 | -7/Factory | Fabricated Hacking Suite (x1) 13364 | -7/Factory | Lost 6 parts (1p3n1u1w) 13660 | -7/Factory | Build established: Hacker-Sprinter 13800 | -7/Factory | Discovered new exit (range 15) 13845 | -7/Factory | Identified exit to Factory 13845 | -7/Factory | Identified exit to Lower Caves 13857 | -7/Factory | Core integrity fell below 50% 13916 | -7/Factory | Lost 3 parts (1p1u1w) 13948 | -7/Factory | Entered another Factory area 13948 | -6/Factory | Evolved 2 slots: Utility x2 14184 | -6/Factory | Discovered new exit (range 16) 14298 | -6/Factory | First assault squad dispatched 14317 | -6/Factory | Entered Extension 14322 | -6/Extension | Destroyed 7 combat bots 14482 | -6/Extension | Spotted B-75 Beast 14535 | -6/Extension | Rescued a captive Derelict 14535 | -6/Extension | Rescued a captive Derelict 14546 | -6/Extension | Rescued a captive Derelict 14662 | -6/Extension | Rescued a captive Derelict 14667 | -6/Extension | First assault squad dispatched 14667 | -6/Extension | Rescued a captive Derelict 14671 | -6/Extension | Rescued a captive Derelict 14671 | -6/Extension | Rescued a captive Derelict 14688 | -6/Extension | Rescued a captive Derelict 14694 | -6/Extension | Rescued a captive Derelict 14695 | -6/Extension | Rescued a captive Derelict 14713 | -6/Extension | Rescued a captive Derelict 14755 | -6/Extension | Build established: Hacker-Scout 15292 | -6/Extension | Disrupted transfer network 15871 | -6/Extension | Spotted B-75 Beast 15884 | -6/Extension | Rescued a captive Derelict 15905 | -6/Extension | Lost 3 parts (1p1n1u) 15974 | -6/Extension | Discovered new exit (range 10) 15974 | -6/Extension | Discovered new exit (range 6) 15988 | -6/Extension | Identified exit to Factory 15989 | -6/Extension | Identified exit to Cetus 15995 | -6/Extension | Disrupted transfer network 15997 | -6/Extension | Entered Factory 15997 | -5/Factory | Evolved 2 slots: Propulsion x1, Utility x1 16381 | -5/Factory | Fabricated Hacking Suite (x1) 16441 | -5/Factory | Identified exit to DSF 16461 | -5/Factory | Repaired Remote Datajack 16461 | -5/Factory | Repaired Cld. VTOL Module 16483 | -5/Factory | Repaired Xenon Bombardment Thruster 16619 | -5/Factory | Build established: Wizard-Scout 16673 | -5/Factory | Sucked down chute 16673 | -5/Factory | Entered Waste 16673 | -5/Waste | The area was eerily silent 16685 | -5/Waste | Found Prototype Processor 16685 | -5/Waste | Identified Exp. Signal Interpreter 16693 | -5/Waste | Discovered new exit (range 10) 16696 | -5/Waste | Identified exit to Factory 16696 | -5/Waste | Entered Factory 16944 | -5/Factory | Discovered new exit (range 19) 16994 | -5/Factory | System corruption reached 10% 17024 | -5/Factory | Lost 3 parts (1n2u) 17279 | -5/Factory | Discovered new exit (range 19) 17296 | -5/Factory | Entered Upper Caves 17572 | -5/Upper Caves | Ambushed by wild Derelicts 17577 | -5/Upper Caves | Build established: Hacker-Mutant 17587 | -5/Upper Caves | Attracted the attention of an 0b10 checkpoint 17604 | -5/Upper Caves | Spotted B-75 Beast 17630 | -5/Upper Caves | Lost 3 parts (2u1w) 17633 | -5/Upper Caves | Discovered new exit (range 7) 17640 | -5/Upper Caves | Entered another Upper Caves area 17744 | -5/Upper Caves | Lost 4 parts (1p1n2u) 17826 | -5/Upper Caves | Discovered new exit (range 8) 17828 | -5/Upper Caves | Entered Warlord 17851 | -5/Warlord | Discovered new exit (range 14) 17855 | -5/Warlord | Entered Proximity Caves 17858 | -4/Proximity Caves | Spotter reported a threat 17858 | -4/Proximity Caves | Spotter reported a threat 17913 | -4/Proximity Caves | Spotted B-86 Titan 17934 | -4/Proximity Caves | Attracted the attention of an 0b10 outpost 17967 | -4/Proximity Caves | Spotter reported a threat 17969 | -4/Proximity Caves | Spotter reported a threat 18005 | -4/Proximity Caves | Lost 7 parts (1p3n3u) 18031 | -4/Proximity Caves | Core integrity fell below 50% 18083 | -4/Proximity Caves | Spotter reported a threat 18135 | -4/Proximity Caves | Attracted the attention of an 0b10 checkpoint 18142 | -4/Proximity Caves | Core integrity fell below 20% 18175 | -4/Proximity Caves | Destroyed by S-27 Virus with Autogun Last Messages --------------- 18035_ L-61 Swordsman unfolds itself. 18035_ I-47 Archangel unfolds itself. 18036_ Imp. Remote Datajack fries itself beyond repair. 18051_ System corrupted: Matter fused (-8). 18056_ Critical hit (Burn: +50). 18081_ N-01 Spotter is scanning... 18083_ ALERT: Unidentified potential threat approaching Complex 0b10. 18094_ 6GYF7E/4>6/TROPR8ZOF 18109_ System corrupted: Matter fused (-10). 18116_ Destroyed VTOL Module. 18118_ S-27 Virus destroyed. 18124_ S-27 Virus suffers critical hit (Impale). 18124_ S-27 Virus destroyed. 18132_ VTOL Module fries itself beyond repair. 18133_ S-27 Virus destroyed. 18135_ Y-64 Sentinel: "INTERCEPTING UNREGISTERED DERELICT." 18138_ A4NVSG